bitfinex/quotes_BTCUSD_20240627
["timestamp","ask_amount","ask_price","bid_price","bid_amount"]
[1719498508022,2.40582682,62389.0,62388.0,0.001024]
[1719498508227,2.40582734,62389.0,62388.0,0.001024]
[1719498508425,2.52574514,62389.0,62388.0,0.001024]
[1719498508862,2.72639634,62389.0,62388.0,0.001024]
[1719498509061,2.74939634,62389.0,62388.0,0.001024]
[1719498510446,2.58911234,62389.0,62388.0,0.001024]
[1719498510621,2.74939634,62389.0,62388.0,0.001024]
[1719498510825,1.81002734,62389.0,62388.0,0.008024]
[1719498511082,1.133322,62389.0,62388.0,0.23546678]
[1719498511277,0.002,62389.0,62388.0,0.23006538]
[1719498511479,0.002,62389.0,62388.0,0.75656628]
[1719498512315,1.353891,62389.0,62388.0,0.17756628]
[1719498512485,1.123991,62389.0,62388.0,0.17756628]
[1719498512685,1.352891,62389.0,62388.0,0.17756628]
[1719498512890,1.352891,62389.0,62388.0,0.17576546]
[1719498513093,1.352891,62389.0,62388.0,0.17856628]
[1719498514334,1.352891,62389.0,62388.0,0.25432291]
[1719498514335,1.032322,62389.0,62388.0,0.25432291]
[1719498514547,0.802422,62389.0,62388.0,0.25432291]
[1719498514968,0.802422,62389.0,62388.0,0.25332291]
[1719498515380,0.802422,62389.0,62388.0,0.26732291]
[1719498515559,0.802422,62389.0,62388.0,0.18975484]
[1719498515813,0.801422,62389.0,62388.0,0.17053423]
[1719498516019,0.801422,62389.0,62388.0,0.18443423]
[1719498516425,0.801422,62389.0,62388.0,0.18964142]
[1719498516572,0.801422,62389.0,62388.0,0.19143336]
[1719498516774,1.351891,62389.0,62388.0,0.19143336]
[1719498516988,1.351891,62389.0,62388.0,0.18964077]
[1719498517213,1.371891,62389.0,62388.0,0.18264077]
[1719498517404,1.371891,62389.0,62388.0,0.17726298]
[1719498518210,1.371891,62389.0,62388.0,0.16326298]
[1719498518211,1.351891,62389.0,62388.0,0.16326298]
[1719498518614,1.351891,62389.0,62388.0,0.17726298]
[1719498519051,1.471891,62389.0,62388.0,0.17726298]
[1719498520082,1.451891,62389.0,62388.0,0.17726298]
[1719498521136,1.47330434,62389.0,62388.0,0.17726298]
[1719498521335,1.47330434,62389.0,62388.0,0.16326298]
[1719498521820,1.49430434,62389.0,62388.0,0.014924]
[1719498522537,1.50997133,62389.0,62388.0,0.014924]
[1719498522907,1.85354033,62389.0,62388.0,0.014924]
[1719498523347,1.16007133,62389.0,62388.0,0.17726298]
[1719498523485,1.14440434,62389.0,62388.0,0.17726298]
[1719498523672,1.14440434,62389.0,62388.0,0.18264407]
[1719498524427,1.15920958,62389.0,62388.0,0.18264407]
[1719498524662,1.14440434,62389.0,62388.0,0.18264407]
[1719498524866,1.14440434,62389.0,62388.0,0.17726298]
[1719498525811,1.14440434,62389.0,62388.0,0.26800928]
[1719498526011,0.50326634,62389.0,62388.0,0.26800928]
[1719498526215,0.482693,62389.0,62388.0,0.2751847]
[1719498527068,0.482693,62389.0,62388.0,0.1984384]
[1719498527288,0.902262,62389.0,62388.0,0.1844384]
[1719498527557,0.902262,62389.0,62388.0,0.1704384]
[1719498528102,0.903262,62389.0,62388.0,0.1844384]
[1719498528330,1.223831,62389.0,62388.0,0.02209942]
[1719498528731,1.223831,62389.0,62388.0,0.014924]
[1719498529836,1.23956197,62389.0,62388.0,0.014924]
[1719498530057,1.25956197,62389.0,62388.0,0.014924]
[1719498532265,1.25956197,62389.0,62388.0,0.028924]
[1719498532728,1.28443497,62389.0,62388.0,0.028924]
[1719498535230,1.53813497,62389.0,62388.0,0.028924]
[1719498535467,1.84923497,62389.0,62388.0,0.028924]
[1719498535701,2.16980397,62389.0,62388.0,0.028924]
[1719498536597,2.16974972,62389.0,62388.0,0.014924]
[1719498537120,2.77585711,62389.0,62388.0,0.000924]
[1719498537372,0.80168,62369.0,62368.0,0.44425318]
[1719498537625,0.481015,62368.0,62367.0,0.2666]
[1719498538125,0.481015,62368.0,62367.0,0.28894529]
[1719498538359,0.801692,62368.0,62367.0,0.45128427]
[1719498539335,0.8268388,62368.0,62367.0,0.45128427]
[1719498539789,0.8268388,62368.0,62367.0,0.5476867]
[1719498540305,0.5061618,62368.0,62367.0,0.5476867]
[1719498540825,0.8268388,62368.0,62367.0,0.45128427]
[1719498541096,0.0251468,62368.0,62367.0,0.53258773]
[1719498541321,0.0251468,62368.0,62367.0,0.45128427]
[1719498541549,0.0251468,62368.0,62367.0,0.76068427]
[1719498541794,0.0251468,62368.0,62367.0,0.8596767]
[1719498542266,0.0251468,62368.0,62367.0,0.76068427]
[1719498542499,0.1854848,62368.0,62367.0,0.76068427]
[1719498543414,0.1864848,62368.0,62367.0,0.77468427]
[1719498543883,0.0261468,62368.0,62367.0,0.77468427]
[1719498544060,0.0261468,62368.0,62367.0,0.8750767]
[1719498545583,0.0261468,62368.0,62367.0,0.77468427]
[1719498546868,0.5071618,62368.0,62367.0,0.19868427]
[1719498547133,0.8278388,62368.0,62367.0,0.19868427]
[1719498548849,0.8278388,62368.0,62367.0,0.17633898]
[1719498549055,0.8278388,62368.0,62367.0,0.19033898]
[1719498549474,1.1485158,62368.0,62367.0,0.19033898]
[1719498550070,1.1485158,62368.0,62367.0,0.19583893]
[1719498550733,1.18422202,62368.0,62367.0,0.18183893]
[1719498550912,1.93169902,62368.0,62367.0,0.014]
[1719498551154,2.17589902,62368.0,62367.0,0.028]
[1719498551367,2.17489902,62368.0,62367.0,0.014]
[1719498553023,2.1591928,62368.0,62367.0,0.028]
[1719498553232,2.30383159,62368.0,62367.0,0.028]
[1719498553411,2.30283159,62368.0,62367.0,0.014]
[1719498553663,2.30283159,62368.0,62363.0,0.00924]
[1719498553664,0.801742,62364.0,62363.0,0.00924]
[1719498553888,1.131642,62364.0,62363.0,0.17157898]
[1719498554307,1.15591498,62364.0,62363.0,0.17157898]
[1719498554735,1.452339,62364.0,62363.0,0.17157898]
[1719498554938,1.452339,62364.0,62363.0,0.18873688]
[1719498555371,1.452339,62364.0,62363.0,0.17157898]
[1719498556411,1.47581704,62364.0,62363.0,0.17157898]
[1719498556632,1.453339,62364.0,62363.0,0.18557898]
[1719498556838,1.47682186,62364.0,62363.0,0.18557898]
[1719498557671,1.453339,62364.0,62363.0,0.18557898]
[1719498557879,1.47701195,62364.0,62363.0,0.18557898]
[1719498558087,1.47701513,62364.0,62363.0,0.18557898]
[1719498558292,1.792839,62364.0,62363.0,0.18557898]
[1719498558506,1.47706681,62364.0,62363.0,0.18557898]
[1719498558716,1.47706681,62364.0,62363.0,0.19957898]
[1719498559157,1.453339,62364.0,62363.0,0.19957898]
[1719498559351,1.47706599,62364.0,62363.0,0.19957898]
[1719498559553,1.50330068,62364.0,62363.0,0.19957898]
[1719498560432,1.52330068,62364.0,62363.0,0.19957898]
[1719498560912,1.5036589,62364.0,62363.0,0.19957898]
[1719498561397,1.47957369,62364.0,62363.0,0.19957898]
[1719498561610,2.06557069,62364.0,62363.0,0.03724]
[1719498561854,2.18542496,62364.0,62363.0,0.03724]
[1719498562159,2.2094375,62364.0,62363.0,0.03724]
[1719498562342,2.18544845,62364.0,62363.0,0.03724]
[1719498562830,2.16164434,62364.0,62363.0,0.03724]
[1719498563038,2.18604903,62364.0,62363.0,0.03724]
[1719498563484,2.21006556,62364.0,62363.0,0.03724]
[1719498564338,2.18604403,62364.0,62363.0,0.03724]
[1719498564512,2.21006556,62364.0,62363.0,0.03724]
[1719498564928,2.18604152,62364.0,62363.0,0.03724]
[1719498565344,2.0899829,62364.0,62363.0,0.03724]
[1719498565791,2.18603417,62364.0,62363.0,0.03724]
[1719498566269,2.09029231,62364.0,62363.0,0.03724]
[1719498566453,2.18634124,62364.0,62363.0,0.03724]
[1719498566682,2.09029231,62364.0,62363.0,0.03724]
[1719498566889,2.50354274,62364.0,62363.0,0.03724]
[1719498568371,2.43049231,62364.0,62363.0,0.03724]
[1719498568553,2.5505564,62364.0,62363.0,0.03724]
[1719498569430,2.52583066,62364.0,62363.0,0.03724]
[1719498569638,2.43762208,62364.0,62363.0,0.03724]
[1719498570532,2.63662208,62364.0,62363.0,0.02324]
[1719498570753,2.75666799,62364.0,62363.0,0.02324]
[1719498570978,2.63862208,62364.0,62363.0,0.02324]
[1719498571171,2.75866808,62364.0,62363.0,0.02324]
[1719498572006,2.55866808,62364.0,62363.0,0.02324]
[1719498572424,2.63862208,62364.0,62363.0,0.02324]
[1719498572642,2.60677069,62364.0,62363.0,0.02324]
[1719498572843,2.43914823,62364.0,62363.0,0.02324]
[1719498573423,2.63914697,62364.0,62363.0,0.02324]
[1719498574026,2.75918054,62364.0,62363.0,0.02324]
[1719498574603,3.22615797,62364.0,62363.0,0.00924]
[1719498575006,3.30423033,62364.0,62363.0,0.00924]
[1719498575862,3.19378169,62364.0,62363.0,0.00924]
[1719498576069,3.30450652,62364.0,62363.0,0.00924]
[1719498579254,3.22624685,62364.0,62363.0,0.00924]
[1719498579452,3.30466619,62364.0,62363.0,0.00924]
[1719498579994,3.30425399,62364.0,62363.0,0.00924]
[1719498580407,3.44837054,62364.0,62363.0,0.00924]
[1719498581248,3.30425399,62364.0,62363.0,0.00924]
[1719498581461,3.44841455,62364.0,62363.0,0.01424]
[1719498582090,3.30425399,62364.0,62363.0,0.01424]
[1719498582292,3.44841703,62364.0,62363.0,0.01424]
[1719498582527,3.19378169,62364.0,62363.0,0.00924]
[1719498582731,3.44879162,62364.0,62363.0,0.00924]
[1719498583163,3.22879162,62364.0,62363.0,0.00924]
[1719498583368,3.44879162,62364.0,62363.0,0.00924]
[1719498583778,3.30461393,62364.0,62363.0,0.00924]
[1719498584824,3.46694764,62364.0,62363.0,0.00924]
[1719498585287,0.50117,62348.0,62347.0,0.00924]
[1719498585517,0.50117,62348.0,62347.0,0.17157898]
[1719498585518,1.40506725,62348.0,62347.0,0.17157898]
[1719498585729,1.37263,62348.0,62347.0,0.17720411]
[1719498585941,1.38496244,62348.0,62347.0,0.17720411]
[1719498586375,1.40496244,62348.0,62347.0,0.01486513]
[1719498586804,1.40496244,62348.0,62347.0,0.00924]
[1719498587226,1.38496244,62348.0,62347.0,0.00924]
[1719498587438,1.50511179,62348.0,62347.0,0.00924]
[1719498587636,1.40496244,62348.0,62347.0,0.00924]
[1719498588063,1.40596244,62348.0,62347.0,0.02324]
[1719498588677,1.38596244,62348.0,62347.0,0.02324]
[1719498588883,1.38596244,62348.0,62347.0,0.03724]
[1719498589089,1.40670769,62348.0,62347.0,0.03724]
[1719498589726,1.37363,62348.0,62347.0,0.03724]
[1719498589952,1.50281955,62348.0,62347.0,0.03724]
[1719498590986,1.50282658,62348.0,62347.0,0.03724]
[1719498591237,1.40669475,62348.0,62347.0,0.03724]
[1719498591413,1.50669475,62348.0,62347.0,0.03724]
[1719498592505,1.50651789,62348.0,62347.0,0.02324]
[1719498592727,1.50551789,62348.0,62347.0,0.00424]
[1719498592958,1.50651789,62348.0,62347.0,0.02924]
[1719498593206,1.50651789,62348.0,62347.0,0.01824]
[1719498593439,1.50551789,62348.0,62347.0,0.01824]
[1719498593651,1.50651789,62348.0,62347.0,0.02924]
[1719498594066,1.50651789,62348.0,62347.0,0.01524]
[1719498594736,1.36881789,62348.0,62347.0,0.01524]
[1719498594954,1.36881789,62348.0,62347.0,0.02924]
[1719498595151,1.36881789,62348.0,62347.0,0.03489454]
[1719498595592,1.36881789,62348.0,62347.0,0.01151454]
[1719498595813,1.36889364,62348.0,62347.0,0.01151454]
[1719498596028,1.3355676,62348.0,62347.0,0.26961454]
[1719498596260,1.3355676,62348.0,62347.0,0.42629898]
[1719498596261,1.0147876,62348.0,62347.0,0.42629898]
[1719498596466,1.02811364,62348.0,62347.0,0.73297638]
[1719498596876,0.99415,62348.0,62347.0,0.73297638]
[1719498597095,1.31493,62348.0,62347.0,0.73297638]
[1719498597308,1.32093,62348.0,62347.0,0.73397638]
[1719498597759,1.35337406,62348.0,62347.0,0.73397638]
[1719498598527,1.37469269,62348.0,62347.0,0.73397638]
[1719498598770,1.48044863,62348.0,62347.0,0.73397638]
[1719498598951,1.78408225,62348.0,62347.0,0.0125374]
[1719498599166,1.78408225,62348.0,62347.0,0.00686]
[1719498599368,2.24907569,62348.0,62347.0,0.00686]
[1719498599575,2.22561989,62348.0,62347.0,0.00686]
[1719498600457,2.53507489,62348.0,62347.0,0.00686]
[1719498600662,2.22561989,62348.0,62347.0,0.00686]
[1719498601076,2.36985235,62348.0,62347.0,0.00686]
[1719498601304,2.51786535,62348.0,62347.0,0.00586]
[1719498601513,2.51886535,62348.0,62347.0,0.01586]
[1719498601940,1.99440311,62348.0,62347.0,0.00586]
[1719498602150,2.12027545,62348.0,62347.0,0.00586]
[1719498602364,2.12227545,62348.0,62347.0,0.00586]
[1719498602579,1.74766194,62348.0,62347.0,0.00586]
[1719498602787,1.97806194,62348.0,62347.0,0.00586]
[1719498603600,1.40688194,62348.0,62347.0,0.00586]
[1719498603872,1.64807597,62348.0,62347.0,0.49339898]
[1719498604107,1.55195742,62348.0,62347.0,0.49339898]
[1719498604540,1.32155742,62348.0,62347.0,0.56809288]
[1719498604753,1.55195742,62348.0,62347.0,0.81239288]
[1719498604954,0.19755647,62348.0,62347.0,0.80653288]
[1719498605208,0.50633148,62348.0,62347.0,0.80653288]
[1719498605399,0.51633394,62348.0,62347.0,0.80653288]
[1719498605610,0.51633394,62348.0,62347.0,0.82653288]
[1719498605809,0.51833394,62348.0,62347.0,0.73183898]
[1719498606025,1.43172868,62348.0,62347.0,0.16233898]
[1719498606227,1.42972868,62348.0,62347.0,0.16233898]
[1719498606880,1.52684244,62348.0,62347.0,0.16733898]
[1719498607087,1.43072868,62348.0,62347.0,0.16733898]
[1719498607299,1.53072868,62348.0,62347.0,0.16733898]
[1719498607741,1.30032868,62348.0,62347.0,0.16733898]
[1719498607945,1.53072868,62348.0,62347.0,0.16733898]
[1719498608147,1.20994868,62348.0,62347.0,0.24161688]
[1719498608603,0.88875842,62348.0,62347.0,0.24161688]
[1719498608807,0.88875842,62348.0,62347.0,0.16733898]
[1719498609190,0.56797842,62348.0,62347.0,0.42323898]
[1719498609469,0.56797842,62348.0,62347.0,0.72543898]
[1719498609666,0.36656421,62348.0,62347.0,0.72543898]
[1719498609866,0.52695421,62348.0,62347.0,0.80090688]
[1719498610080,0.13616421,62348.0,62347.0,0.80090688]
[1719498610539,0.13616421,62348.0,62347.0,0.82090688]
[1719498610959,0.36656421,62348.0,62347.0,0.82090688]
[1719498611396,0.13616421,62348.0,62347.0,0.82090688]
[1719498611620,0.02616148,62348.0,62347.0,0.82090688]
[1719498612664,0.02616148,62348.0,62347.0,1.02090688]
[1719498612894,0.02616148,62348.0,62347.0,1.39000688]
[1719498613115,0.00084,62364.0,62359.0,0.02]
[1719498613330,0.00084,62364.0,62363.0,0.5732]
[1719498615045,0.10084,62364.0,62363.0,0.73553898]
[1719498615233,0.10084,62364.0,62363.0,0.16233898]
[1719498615234,1.223279,62364.0,62363.0,0.16233898]
[1719498615464,0.902582,62364.0,62363.0,0.16791834]
[1719498615673,0.99869809,62364.0,62363.0,0.16791834]
[1719498615882,0.261188,62364.0,62363.0,0.16791834]
[1719498616086,1.223279,62364.0,62363.0,0.16791834]
[1719498616293,1.24766607,62364.0,62363.0,0.18091834]
[1719498616508,1.24766607,62364.0,62363.0,0.17533898]
[1719498616775,1.24766607,62364.0,62363.0,0.76723081]
[1719498616776,0.10084,62364.0,62363.0,0.76723081]
[1719498616995,0.00084,62364.0,62363.0,0.76723081]
[1719498617210,0.00084,62364.0,62363.0,0.75981017]
[1719498617413,0.00084,62364.0,62363.0,0.78881017]
[1719498617859,0.00084,62364.0,62363.0,0.77981017]
[1719498618692,0.00184,62364.0,62363.0,0.79381017]
[1719498618905,0.00184,62364.0,62363.0,0.77381017]
[1719498619097,0.00184,62364.0,62363.0,0.75571834]
[1719498619307,0.00184,62364.0,62363.0,0.77156092]
[1719498619661,0.00184,62364.0,62363.0,0.75569854]
[1719498620024,0.00184,62364.0,62363.0,0.76969854]
[1719498620876,0.02698975,62364.0,62363.0,0.76969854]
[1719498621289,0.18733775,62364.0,62363.0,0.76969854]
[1719498621539,0.50803475,62364.0,62363.0,0.19589854]
[1719498622155,1.14942875,62364.0,62363.0,0.19589854]
[1719498622761,0.82873175,62364.0,62363.0,0.19589854]
[1719498623020,0.82873175,62364.0,62363.0,0.27506989]
[1719498623441,0.82773175,62364.0,62363.0,0.26106989]
[1719498624313,0.02598975,62364.0,62363.0,0.26106989]
[1719498625281,0.02598975,62364.0,62363.0,1.55046989]
[1719498625505,0.00084,62364.0,62363.0,1.55232418]
[1719498625945,0.00084,62364.0,62363.0,1.56632418]
[1719498626161,0.00184,62364.0,62363.0,1.56632418]
[1719498628546,0.00184,62364.0,62363.0,1.52632418]
[1719498630385,0.00184,62364.0,62363.0,1.50632418]
[1719498631378,0.00184,62364.0,62363.0,1.52632418]
[1719498631818,0.30241303,62376.0,62365.0,0.2]
[1719498632022,0.320642,62375.0,62372.0,0.16233898]
[1719498632443,0.160323,62374.0,62373.0,0.00732205]
[1719498632654,0.801615,62374.0,62373.0,0.16966103]
[1719498632843,0.801615,62374.0,62373.0,0.16233898]
[1719498633255,1.122261,62374.0,62373.0,0.17857288]
[1719498633459,1.352661,62374.0,62373.0,0.16233898]
[1719498634001,1.452661,62374.0,62373.0,0.17133898]
[1719498634845,1.452661,62374.0,62373.0,0.009]
[1719498634846,1.793307,62374.0,62373.0,0.009]
[1719498635061,2.38373963,62374.0,62373.0,0.009]
[1719498636309,0.160348,62364.0,62363.0,0.014]
[1719498636512,0.711445,62364.0,62363.0,0.1818775]
[1719498636710,1.032142,62364.0,62363.0,0.1678775]
[1719498636931,1.032142,62364.0,62363.0,0.16233898]
[1719498637987,1.032142,62364.0,62363.0,0.19074438]
[1719498638977,1.032142,62364.0,62363.0,0.17233898]
[1719498641241,1.032142,62364.0,62363.0,0.01]
[1719498641242,2.018339,62364.0,62363.0,0.01]
[1719498641440,2.33237083,62364.0,62363.0,0.01]
[1719498641640,2.01060995,62364.0,62363.0,0.01]
[1719498641910,2.03060995,62364.0,62363.0,0.01]
[1719498642968,2.35130695,62364.0,62363.0,0.01]
[1719498643600,2.47115894,62364.0,62363.0,0.01]
[1719498643770,0.160384,62350.0,62349.0,0.44425318]
[1719498643987,0.481153,62350.0,62349.0,0.16233898]
[1719498644162,0.481153,62350.0,62349.0,0.16794768]
[1719498644374,0.801922,62350.0,62349.0,0.16233898]
[1719498644980,1.122691,62350.0,62349.0,0.16233898]
[1719498645582,1.122691,62350.0,62349.0,0.17633898]
[1719498647340,1.122691,62350.0,62349.0,0.16233898]
[1719498648003,1.123691,62350.0,62349.0,0.18133898]
[1719498648229,1.123691,62350.0,62349.0,0.17633898]
[1719498648545,1.123691,62350.0,62349.0,0.18533898]
[1719498650036,0.001,62350.0,62349.0,0.79028928]
[1719498650240,0.001,62350.0,62349.0,0.79589798]
[1719498654558,0.391784,62350.0,62349.0,0.19094768]
[1719498655529,0.391784,62350.0,62349.0,0.18533898]
[1719498656447,0.712553,62350.0,62349.0,0.18533898]
[1719498656645,1.033322,62350.0,62349.0,0.18533898]
[1719498657054,1.033322,62350.0,62349.0,0.18626298]
[1719498657621,1.716091,62350.0,62349.0,0.18626298]
[1719498658232,1.716091,62350.0,62349.0,0.023924]
[1719498658436,1.72942896,62350.0,62349.0,0.023924]
[1719498658640,1.82550752,62350.0,62349.0,0.023924]
[1719498659263,2.08132896,62350.0,62349.0,0.023924]
[1719498659777,2.17738287,62350.0,62349.0,0.023924]
[1719498660143,2.08132896,62350.0,62349.0,0.023924]
[1719498661225,2.08133032,62350.0,62349.0,0.023924]
[1719498662318,2.28133032,62350.0,62349.0,0.023924]
[1719498662517,2.30649149,62350.0,62349.0,0.023924]
[1719498662981,2.22648755,62350.0,62349.0,0.023924]
[1719498663194,2.74725655,62350.0,62349.0,0.023924]
[1719498663403,2.79267649,62350.0,62349.0,0.023924]
[1719498663616,2.59267649,62350.0,62349.0,0.023924]
[1719498664548,2.79267687,62350.0,62349.0,0.023924]
[1719498665205,2.79267687,62350.0,62349.0,0.02387317]
[1719498666021,2.79267687,62350.0,62349.0,0.01487317]
[1719498666194,2.91261786,62350.0,62349.0,0.01587317]
[1719498666397,2.91261406,62350.0,62349.0,0.01587317]
[1719498666733,2.62726087,62350.0,62349.0,0.01587317]
[1719498666970,2.62626087,62350.0,62349.0,0.001924]
[1719498667175,3.35348987,62350.0,62349.0,0.011924]
[1719498667789,3.66091917,62350.0,62349.0,0.011924]
[1719498668005,4.10459409,62350.0,62349.0,0.011924]
[1719498668242,3.9607022,62350.0,62349.0,0.011924]
[1719498668873,0.18042,62336.0,62327.0,0.3244]
[1719498669099,0.320893,62326.0,62323.0,0.2444]
[1719498669312,1.123125,62326.0,62325.0,0.17158998]
[1719498669739,1.243125,62326.0,62325.0,0.10642881]
[1719498670476,1.834125,62326.0,62325.0,0.10642881]
[1719498670679,1.834125,62326.0,62325.0,0.11442881]
[1719498670893,2.155018,62326.0,62325.0,0.008]
[1719498671304,2.18018609,62326.0,62325.0,0.008]
[1719498672338,2.54980309,62326.0,62325.0,0.008]
[1719498672546,0.160482,62312.0,62311.0,0.44425318]
[1719498672755,1.032812,62312.0,62311.0,0.16233898]
[1719498672977,1.132812,62312.0,62311.0,0.16233898]
[1719498673613,0.811847,62312.0,62311.0,0.16233898]
[1719498674031,0.491882,62312.0,62311.0,0.25207288]
[1719498675284,0.3314,62312.0,62311.0,0.25207288]
[1719498675495,0.491882,62312.0,62311.0,0.25207288]
[1719498675696,0.491882,62312.0,62311.0,0.17633898]
[1719498678284,0.491882,62312.0,62311.0,0.18216392]
[1719498680689,1.053882,62312.0,62311.0,0.18216392]
[1719498680937,1.073882,62312.0,62311.0,0.18216392]
[1719498681178,0.511882,62312.0,62311.0,0.17633898]
[1719498681914,0.511882,62312.0,62311.0,0.18105879]
[1719498681915,0.491882,62312.0,62311.0,0.18105879]
[1719498682210,0.261482,62312.0,62311.0,0.44485879]
[1719498682479,0.491882,62312.0,62311.0,0.44485879]
[1719498682713,0.492882,62312.0,62311.0,0.18805879]
[1719498683205,0.491882,62312.0,62311.0,0.17405879]
[1719498683473,0.490882,62312.0,62311.0,0.17205879]
[1719498683685,0.490882,62312.0,62311.0,0.16705879]
[1719498684171,0.490882,62312.0,62311.0,0.17205879]
[1719498684433,0.491882,62312.0,62311.0,0.19838969]
[1719498684680,0.491882,62312.0,62311.0,0.17905879]
[1719498685370,0.748182,62312.0,62311.0,0.17905879]
[1719498685609,0.491882,62312.0,62311.0,0.17905879]
[1719498685832,0.511882,62312.0,62311.0,0.17905879]
[1719498686089,0.491882,62312.0,62311.0,0.17905879]
[1719498686597,0.511882,62312.0,62311.0,0.17905879]
[1719498687886,0.511882,62312.0,62311.0,0.17433898]
[1719498688410,1.424309,62312.0,62311.0,0.1491703]
[1719498688635,0.742282,62312.0,62311.0,0.1491703]
[1719498689044,1.450445,62312.0,62311.0,0.1491703]
[1719498689480,3.450445,62312.0,62311.0,0.1491703]
[1719498690094,3.450445,62312.0,62311.0,0.1500943]
[1719498690308,3.767145,62312.0,62311.0,0.1500943]
[1719498690946,3.306345,62312.0,62311.0,0.1500943]
[1719498691188,3.021045,62312.0,62311.0,0.1500943]
[1719498691593,2.969009,62312.0,62311.0,0.1500943]
[1719498692237,2.738609,62312.0,62311.0,0.1500943]
[1719498694203,2.738609,62312.0,62311.0,0.1430943]
[1719498694204,2.737609,62312.0,62311.0,0.1430943]
[1719498694822,2.738609,62312.0,62311.0,0.1500943]
[1719498695450,3.2735238,62312.0,62311.0,0.012924]
[1719498695679,0.7653,62305.0,62294.0,0.2604]
[1719498695924,0.8653,62305.0,62304.0,0.17158998]
[1719498696133,1.2957,62305.0,62304.0,0.17158998]
[1719498696357,3.198516,62305.0,62304.0,1e-06]
[1719498696568,3.198516,62305.0,62277.0,0.578]
[1719498696569,0.180547,62287.0,62278.0,0.48782074]
[1719498696790,0.510947,62287.0,62286.0,0.17158998]
[1719498697441,1.266547,62287.0,62286.0,0.009251]
[1719498697668,0.160575,62276.0,62270.0,0.2568]
[1719498697876,0.510975,62276.0,62275.0,0.17478048]
[1719498698083,0.510975,62276.0,62275.0,0.17885177]
[1719498698309,0.510975,62276.0,62275.0,0.01651279]
[1719498698745,0.834175,62276.0,62275.0,0.0124415]
[1719498699428,1.372854,62276.0,62275.0,0.0124415]
[1719498699645,1.572854,62276.0,62275.0,0.0124415]
[1719498701943,1.372854,62276.0,62275.0,0.0124415]
[1719498702372,1.372854,62276.0,62275.0,0.0134415]
[1719498702587,1.372854,62276.0,62275.0,0.001]
[1719498702796,0.02,62268.0,62255.0,0.00321221]
[1719498703025,1.192279,62276.0,62263.0,0.16233898]
[1719498703026,0.02,62272.0,62263.0,0.16233898]
[1719498703239,0.2304,62264.0,62263.0,0.16644797]
[1719498703457,0.1,62275.0,62263.0,0.18401787]
[1719498703458,0.12,62275.0,62263.0,0.18401787]
[1719498703668,0.02,62269.0,62264.0,0.65210346]
[1719498703876,0.02,62271.0,62265.0,0.16233898]
[1719498704092,0.02,62269.0,62265.0,0.16647881]
[1719498704299,0.2304,62266.0,62265.0,0.16647881]
[1719498704492,0.3504,62266.0,62265.0,0.16647881]
[1719498705195,0.3504,62266.0,62265.0,0.16833521]
[1719498706137,0.3504,62266.0,62265.0,0.00599623]
[1719498706475,0.3504,62266.0,62265.0,0.0018564]
[1719498707732,0.6049,62266.0,62265.0,0.0018564]
[1719498707961,0.66928,62266.0,62265.0,0.0018564]
[1719498708760,0.66928,62266.0,62265.0,0.0038564]
[1719498709078,1.736241,62266.0,62265.0,0.0038564]
[1719498709308,1.736241,62266.0,62248.0,0.009251]
[1719498709309,0.02,62251.0,62248.0,0.009251]
[1719498709524,0.02,62251.0,62249.0,0.16233898]
[1719498709710,0.4608,62250.0,62249.0,0.16699291]
[1719498709928,0.5608,62250.0,62249.0,0.16699291]
[1719498710468,0.5608,62250.0,62249.0,0.16815639]
[1719498710700,0.5808,62250.0,62249.0,0.16815639]
[1719498710905,0.3504,62250.0,62249.0,0.16815639]
[1719498711105,0.3504,62250.0,62249.0,0.00581741]
[1719498711306,0.3304,62250.0,62249.0,0.00581741]
[1719498711518,0.3304,62250.0,62249.0,0.16233898]
[1719498711730,0.3304,62250.0,62249.0,0.77019798]
[1719498711984,0.3304,62250.0,62249.0,0.77601539]
[1719498712190,0.1,62250.0,62249.0,0.77601539]
[1719498712389,0.2304,62250.0,62249.0,0.77601539]
[1719498712563,0.3304,62250.0,62249.0,0.77601539]
[1719498712764,0.3314,62250.0,62249.0,0.76985639]
[1719498713597,0.3314,62250.0,62249.0,0.17915639]
[1719498714797,0.5618,62250.0,62249.0,0.17915639]
[1719498715126,0.5618,62250.0,62249.0,0.17333898]
[1719498715475,0.5618,62250.0,62249.0,0.17725326]
[1719498715678,1.43621,62250.0,62249.0,0.01491428]
[1719498715881,1.43621,62250.0,62248.0,0.009251]
[1719498715882,0.22,62249.0,62248.0,0.009251]
[1719498716094,0.22,62249.0,62223.0,0.009262]
[1719498716095,0.2702,62240.0,62223.0,0.009262]
[1719498716273,0.02,62238.0,62228.0,0.08130346]
[1719498716481,0.02,62236.0,62229.0,0.16233898]
[1719498716679,0.4082,62239.0,62229.0,0.16233898]
[1719498716680,0.2304,62230.0,62229.0,0.16233898]
[1719498716920,0.3304,62230.0,62229.0,0.16233898]
[1719498717258,0.3304,62230.0,62229.0,0.15733898]
[1719498717612,0.3504,62230.0,62229.0,0.15733898]
[1719498717819,0.3304,62230.0,62229.0,0.15733898]
[1719498718013,0.3304,62230.0,62229.0,0.17307288]
[1719498718270,0.3304,62230.0,62229.0,0.40553898]
[1719498718478,0.02,62255.0,62230.0,0.02]
[1719498718612,0.48782074,62248.0,62245.0,0.2466]
[1719498718816,0.02,62250.0,62246.0,0.16233898]
[1719498719019,0.2304,62247.0,62246.0,0.16233898]
[1719498719805,0.02,62251.0,62246.0,0.16233898]
[1719498719806,0.02086745,62256.0,62246.0,0.24325322]
[1719498719994,0.2304,62249.0,62247.0,0.0032126]
[1719498720193,0.2384,62249.0,62248.0,0.5655]
[1719498720615,0.2304,62249.0,62248.0,0.5655]
[1719498720957,0.2304,62249.0,62248.0,0.16233898]
[1719498721341,0.4608,62249.0,62248.0,0.16233898]
[1719498721545,0.4608,62249.0,62233.0,0.2]
[1719498721546,0.02,62248.0,62235.0,0.2643]
[1719498721743,0.02,62244.0,62236.0,0.16233898]
[1719498721972,0.2304,62237.0,62236.0,0.16233898]
[1719498722171,0.2304,62237.0,62236.0,0.21165288]
[1719498722391,0.1,62237.0,62236.0,0.21165288]
[1719498722617,0.3304,62237.0,62236.0,0.41153898]
[1719498724719,0.3304,62237.0,62236.0,0.16233898]
[1719498725244,2.3304,62237.0,62227.0,0.3175]
[1719498725472,0.2304,62228.0,62227.0,0.16233898]